fUST/lending_fUST_20250401
["ID","MTS","AMOUNT","RATE_DAILY","PERIOD"]
[356974042,1743511876608,-1542.22,0.00024109,2]
[356974043,1743511876618,-1542.22,0.00024109,2]
[356974044,1743511876628,-1542.22,0.00024109,2]
[356974045,1743511876639,-1542.22,0.00024109,2]
[356974046,1743511876648,-1542.22,0.00024109,2]
[356974047,1743511876658,-1542.22,0.00024109,2]
[356974048,1743511876669,-1542.22,0.00024109,2]
[356974049,1743511876678,-1542.22,0.00024109,2]
[356974050,1743511876689,-1542.22,0.00024109,2]
[356974051,1743511876700,-1542.22,0.00024109,2]
[356974052,1743511876709,-1542.22,0.00024109,2]
[356974053,1743511876718,-1542.22,0.00024109,2]
[356974054,1743511876728,-1542.22,0.00024109,2]
[356974055,1743511876738,-1542.22,0.00024109,2]
[356974056,1743511876748,-1542.22,0.00024109,2]
[356974057,1743511876759,-1542.22,0.00024109,2]
[356974058,1743511876770,-1542.22,0.00024109,2]
[356974059,1743511876779,-1542.22,0.00024109,2]
[356974060,1743511876788,-1542.22,0.00024109,2]
[356974061,1743511876797,-1542.29398304,0.00024109,2]
[356974062,1743511876807,-200.0,0.00024118,120]
[356974063,1743511876816,-1921.063722,0.00024167,7]
[356974064,1743511876825,-334.237075,0.00024167,7]
[356974065,1743511876835,-1613.0,0.00024175,2]
[356974066,1743511876844,-231.28369723,0.00024199,2]
[356974067,1743511876853,-1325.49,0.00024223,2]
[356974068,1743511876862,-427.34794339,0.00024274,2]
[356974069,1743511876871,-2236.64281145,0.00024294,2]
[356974070,1743511877038,-500.0,0.00016438,2]
[356974071,1743511877050,-500.0,0.00016438,2]
[356974072,1743511877060,-500.0,0.00016712,2]
[356974073,1743511877069,-500.0,0.00016712,2]
[356974074,1743511877079,-500.0,0.00016986,2]
[356974075,1743511877090,-500.0,0.0001726,2]
[356974076,1743511877099,-377.99842313,0.00017534,2]
[356974077,1743511877109,-3346.22827437,0.00024294,2]
[356974078,1743511877119,-5000.0,0.00024296,2]
[356974079,1743511877133,-5000.0,0.00024296,2]
[356974080,1743511877142,-5000.0,0.000243,2]
[356974081,1743511877152,-5000.0,0.00024305,2]
[356974082,1743511877162,-1325.49,0.00024496,2]
[356974083,1743511877173,-2000.0,0.000245,2]
[356974084,1743511877183,-151.12215327,0.00024573,2]
[356974085,1743511877193,-150.0,0.00024573,2]
[356974086,1743511877204,-2970.0,0.00024582,2]
[356974087,1743511877216,-61141.78534371,0.000246,14]
[356974101,1743512018115,-330.63187497,0.00014728,2]
[356974870,1743512061975,-216.98028555,0.00014581,2]
[356975526,1743512227000,-116.43231575,0.00014581,2]
[356975527,1743512227026,-760.25512353,0.00014728,2]
[356975528,1743512227055,-439.180335,0.00015742,2]
[356975529,1743512227083,-5000.0,0.00016137,2]
[356975530,1743512227114,-300.0,0.00016234,2]
[356975531,1743512227141,-500.0,0.00016235,2]
[356975532,1743512227171,-641.74128804,0.00016235,2]
[356975533,1743512227204,-500.0,0.00016235,2]
[356975534,1743512227238,-500.0,0.00016235,2]
[356975535,1743512227274,-500.0,0.00016235,2]
[356975536,1743512227308,-500.0,0.00016235,2]
[356975537,1743512227341,-500.0,0.00016235,2]
[356975538,1743512227374,-500.0,0.00016235,2]
[356975539,1743512227404,-500.0,0.00016235,2]
[356975540,1743512227434,-500.0,0.00016235,2]
[356975541,1743512227464,-500.0,0.00016235,2]
[356975542,1743512227495,-500.0,0.00016235,2]
[356975543,1743512227527,-294.8218969,0.00016235,2]
[356975544,1743512227559,-500.0,0.00016235,2]
[356975545,1743512227593,-500.0,0.00016235,2]
[356975546,1743512227629,-500.0,0.00016235,2]
[356975547,1743512227658,-500.0,0.00016235,2]
[356975548,1743512227690,-500.0,0.00016235,2]
[356975549,1743512227721,-500.0,0.00016235,2]
[356975550,1743512227754,-500.0,0.00016235,2]
[356975551,1743512227786,-500.0,0.00016235,2]
[356975552,1743512227818,-500.0,0.00016235,2]
[356975553,1743512227848,-500.0,0.00016235,2]
[356975554,1743512227879,-500.0,0.00016235,2]
[356975555,1743512227910,-500.0,0.00016235,2]
[356975556,1743512227944,-500.0,0.00016235,2]
[356975557,1743512227977,-500.0,0.00016235,2]
[356975558,1743512228009,-500.0,0.00016235,2]
[356975559,1743512228040,-500.0,0.00016235,2]
[356975560,1743512228072,-500.0,0.00016235,2]
[356975561,1743512228104,-500.0,0.00016235,2]
[356975562,1743512228136,-500.0,0.00016235,2]
[356975563,1743512228168,-500.0,0.00016235,2]
[356975564,1743512228200,-500.0,0.00016235,2]
[356975565,1743512228231,-500.0,0.00016235,2]
[356975566,1743512228266,-500.0,0.00016235,2]
[356975567,1743512228299,-447.56904078,0.00016235,2]
[356975568,1743512231161,-52.43095922,0.00016235,2]
[356975569,1743512231194,-500.0,0.00016235,2]
[356975570,1743512231226,-500.0,0.00016235,2]
[356975571,1743512231259,-500.0,0.00016235,2]
[356975572,1743512231290,-500.0,0.00016235,2]
[356975573,1743512231324,-500.0,0.00016235,2]
[356975574,1743512231357,-500.0,0.00016235,2]
[356975575,1743512231387,-500.0,0.00016235,2]
[356975576,1743512231418,-500.0,0.00016235,2]
[356975577,1743512231448,-500.0,0.00016235,2]
[356975578,1743512231478,-500.0,0.00016235,2]
[356975579,1743512231508,-500.0,0.00016235,2]
[356975580,1743512231537,-500.0,0.00016235,2]
[356975581,1743512231568,-500.0,0.00016235,2]
[356975582,1743512231598,-500.0,0.00016235,2]
[356975583,1743512231629,-500.0,0.00016235,2]
[356975584,1743512231658,-500.0,0.00016235,2]
[356975585,1743512231687,-500.0,0.00016235,2]
[356975586,1743512231717,-500.0,0.00016235,2]
[356975587,1743512231747,-500.0,0.00016235,2]
[356975588,1743512231776,-500.0,0.00016235,2]
[356975589,1743512231806,-500.0,0.00016235,2]
[356975590,1743512231835,-603.05679207,0.00016235,2]
[356975591,1743512231865,-500.0,0.00016235,2]
[356975592,1743512231891,-310.44065092,0.00016237,2]
[356975593,1743512231917,-13034.07159779,0.00016238,2]
[356975594,1743512231998,-25000.0,0.00016238,2]
[356975595,1743512232914,-25000.0,0.00016238,2]
[356975596,1743512234559,-25000.0,0.00016238,2]
[356975597,1743512235878,-25000.0,0.00016238,2]
[356975598,1743512237074,-25000.0,0.00016238,2]
[356975599,1743512240088,-500.0,0.00016235,2]
[356975600,1743512240119,-550.0,0.00016235,2]
[356975601,1743512240150,-500.0,0.00016235,2]
[356975602,1743512240181,-500.0,0.00016235,2]
[356975603,1743512240211,-500.0,0.00016235,2]
[356975604,1743512240241,-500.0,0.00016235,2]
[356975605,1743512240275,-500.0,0.00016235,2]
[356975606,1743512240306,-500.0,0.00016235,2]
[356975607,1743512240333,-20950.0,0.00016238,2]
[356975608,1743512247505,-3000.0,0.00016238,2]
[356975609,1743512254699,-500.0,0.00016238,2]
[356975611,1743512312374,-171.35,0.00014481,2]
[356975612,1743512368309,-6.14542255,0.00014481,2]
[356975613,1743512368334,-293.85457745,0.00015235,2]
[356975614,1743512372121,-44.17313045,0.00015235,2]
[356975615,1743512372143,-116.32748069,0.00015235,2]
[356975616,1743512404290,-55.02251931,0.00015235,2]
[356975617,1743512404319,-101.99724249,0.00015235,2]
[356975618,1743512575941,-129.76425182,0.00015235,2]
[356975619,1743512575965,-20.63235795,0.00015235,2]
[356975622,1743512663776,-191.90544578,0.00015135,2]
[356975623,1743512785904,-176.77692457,0.00015135,2]
[356975624,1743512812417,2393.655955,1e-08,120]
[356975638,1743513032123,-656.29837822,0.00015135,2]
[356975639,1743513032294,-1438.72680131,0.00015135,2]
[356975640,1743513032306,-1625.67806048,0.00015135,2]
[356975641,1743513032316,-758.06385598,0.0001515,2]
[356975642,1743513037938,-99.58876122,0.0001515,2]
[356975643,1743513037948,-216.9802855,0.0001515,2]
[356975644,1743513037958,-229.36764205,0.00015235,2]
[356975645,1743513037967,-156.39781909,0.000153,2]
[356975646,1743513037977,-175.66051094,0.00015937,2]
[356975647,1743513037986,-300.0,0.00016036,2]
[356975648,1743513037996,-1211.45523471,0.00016037,2]
[356975658,1743513043165,-2883.19999892,0.00016037,2]
[356975659,1743513043178,-905.34476637,0.00016037,2]
[356975660,1743513043189,-199.02120964,0.00016138,2]
[356975661,1743513043198,-500.0,0.00016228,2]
[356975662,1743513043207,-291.63402399,0.00016228,2]
[356975664,1743513043969,-189.00533855,0.00016228,2]
[356975665,1743513043979,-74.57370356,0.00016228,2]
[356976007,1743513101385,-222.82211988,0.00015345,2]
[356976008,1743513112411,-277.17788012,0.00015284,2]
[356976009,1743513123987,-191.90544578,0.00015284,2]
[356976010,1743513154443,-171.85455422,0.00015035,2]
[356976011,1743513169252,-27.16665542,0.00015035,2]
[356976012,1743513169274,-134.95272072,0.00015284,2]
[356976013,1743513183239,-157.0197618,0.00015284,2]
[356976014,1743513228417,-170.01932539,0.00015244,2]
[356976015,1743513243271,-151.0,0.00015244,2]
[356976016,1743513247351,-151.0,0.00015244,2]
[356976017,1743513275588,-225.53376751,0.00015244,2]
[356976018,1743513302481,-230.15819044,0.00015244,2]
[356976019,1743513340112,-161.37406149,0.00015244,2]
[356976020,1743513362036,-150.39660977,0.00015244,2]
[356976021,1743513393803,-150.39660977,0.00015092,2]
[356976022,1743513393827,-4.47664945,0.00015244,2]
[356976023,1743513422088,-154.87325922,0.00015092,2]
[356976024,1743513422111,-12.73321328,0.00015244,2]
[356976025,1743513483267,-161.3740615,0.00014343,2]
[356976026,1743513483293,-6.2688925,0.00015244,2]
[356976027,1743513485819,-167.642954,0.00015244,2]
[356976028,1743513523722,-180.8497595,0.00015244,2]
[356976029,1743513528099,-151.0,0.00015244,2]
[356976030,1743513528295,-151.0,0.00015244,2]
[356976031,1743513541979,-152.93349173,0.00015244,2]
[356976032,1743513603800,-151.0,0.00015283,2]
[356976033,1743513604272,-149.0,0.00015283,2]
[356976034,1743513624553,-245.53100959,0.00015284,2]
[356976035,1743513631829,-166.45202818,0.00015284,2]
[356976036,1743513634028,-300.0,0.00015284,2]
[356976037,1743513706275,-172.67699758,0.00014341,2]
[356976038,1743513713868,-234.82266084,0.0001434,2]
[356976039,1743513739950,-172.67699758,0.00014197,2]
[356976040,1743513739972,-65.17733916,0.0001434,2]
[356976041,1743513739995,-62.14566326,0.00014341,2]
[356976042,1743513744754,-244.87850032,0.00014197,2]
[356976051,1743513989500,-300.0,0.00014,2]
[356976057,1743514122398,-250.0,0.0001386,2]
[356976073,1743514232914,-584.82266084,0.0001386,2]
[356976074,1743514232924,-3667.82161367,0.00014,2]
[356976075,1743514232934,-250.0,0.00014297,2]
[356976076,1743514232944,-357.89619516,0.00014341,2]
[356976077,1743514232954,-509.0617254,0.00014787,2]
[356976078,1743514232963,-150.0,0.00015237,7]
[356976079,1743514232974,-160.0,0.0001524,2]
[356976080,1743514232984,-300.0,0.00015283,2]
[356976081,1743514232994,-7626.96115381,0.00015284,2]
[356976082,1743514233003,-500.0,0.00015335,2]
[356976083,1743514233013,-379.79138511,0.00015335,2]
[356976084,1743514233023,-21703.09465104,0.00015336,2]
[356976085,1743514233051,-428.0601985,0.00015336,2]
[356976092,1743514238224,-500.0,0.00015335,2]
[356976093,1743514238235,-500.0,0.00015335,2]
[356976094,1743514238246,-624.92819811,0.00015335,2]
[356976095,1743514238257,-126.95171615,0.00015335,2]
[356976107,1743514240375,-506.34744754,0.00015335,2]
[356976108,1743514240386,-500.0,0.00015335,2]
[356976109,1743514240396,-500.0,0.00015335,2]
[356976110,1743514240405,-500.0,0.00015335,2]
[356976111,1743514240415,-405.14597232,0.00015335,2]
[356976124,1743514246121,-94.85402768,0.00015335,2]
[356976125,1743514246131,-265.3959721,0.00015335,2]
[356976126,1743514246143,-234.6040279,0.00015335,2]
[356976127,1743514246153,-500.0,0.00015335,2]
[356976128,1743514246162,-500.0,0.00015335,2]
[356976129,1743514246172,-500.0,0.00015335,2]
[356976130,1743514246181,-500.0,0.00015335,2]
[356976131,1743514246191,-500.0,0.00015335,2]
[356976132,1743514246201,-500.0,0.00015335,2]
[356976133,1743514246211,-500.0,0.00015335,2]
[356976134,1743514246220,-500.0,0.00015335,2]
[356976135,1743514246230,-500.0,0.00015335,2]
[356976136,1743514246239,-373.86000836,0.00015335,2]
[356976137,1743514246255,-126.13999164,0.00015335,2]
[356976138,1743514246265,-500.0,0.00015335,2]
[356976139,1743514246275,-500.0,0.00015335,2]
[356976140,1743514246284,-500.0,0.00015335,2]
[356976141,1743514246294,-500.0,0.00015335,2]
[356976142,1743514246304,-500.0,0.00015335,2]
[356976143,1743514246313,-500.0,0.00015335,2]
[356976144,1743514246323,-500.0,0.00015335,2]
[356976145,1743514246332,-500.0,0.00015335,2]
[356976146,1743514246342,-500.0,0.00015335,2]
[356976147,1743514246352,-500.0,0.00015335,2]
[356976148,1743514246361,-500.0,0.00015335,2]
[356976149,1743514246372,-500.0,0.00015335,2]
[356976150,1743514246381,-500.0,0.00015335,2]
[356976151,1743514246391,-267.07281705,0.00015335,2]
[356976152,1743514246400,-500.0,0.00015335,2]
[356976153,1743514246410,-500.0,0.00015335,2]
[356976154,1743514246419,-500.0,0.00015335,2]
[356976155,1743514246429,-500.0,0.00015335,2]
[356976156,1743514246438,-500.0,0.00015335,2]
[356976157,1743514246448,-250.19242063,0.00015335,2]
[356976158,1743514246457,-500.0,0.00015335,2]
[356976159,1743514246467,-500.0,0.00015335,2]
[356976160,1743514246477,-500.0,0.00015335,2]
[356976161,1743514246486,-500.0,0.00015335,2]
[356976162,1743514246498,-500.0,0.00015335,2]
[356976163,1743514246508,-500.0,0.00015335,2]
[356976164,1743514246518,-500.0,0.00015335,2]
[356976165,1743514246527,-16105.78715309,0.00015336,2]
[356976166,1743514246559,-5719.50042343,0.00015336,2]
[356976167,1743514246571,-854.6,0.00015336,2]
[356976168,1743514389543,471.81,0.00010959,2]
[356976169,1743514400350,471.81,0.00010959,2]
[356976239,1743515440658,-250.0,0.00013765,2]
[356976240,1743515440668,-1968.15027819,0.00013848,2]
[356976241,1743515440680,-1045.42938353,0.00013848,2]
[356976251,1743515443415,-21886.42033828,0.00013848,2]
[356976252,1743515443425,-173.1181068,0.00013905,2]
[356976253,1743515443435,-296.359428,0.00014189,2]
[356976254,1743515443444,-166.4520281,0.00014505,2]
[356976255,1743515443454,-4007.79845196,0.00014856,2]
[356976256,1743515443464,-1395.57699216,0.00014858,2]
[356976257,1743515443474,-5000.0,0.00014859,2]
[356976258,1743515443484,-151.50852256,0.00014944,2]
[356976259,1743515443494,-500.0,0.00014955,2]
[356976260,1743515443504,-232.75742022,0.00014955,2]
[356976261,1743515443514,-500.0,0.00014955,2]
[356976262,1743515443525,-500.0,0.00014955,2]
[356976263,1743515443534,-500.0,0.00014955,2]
[356976264,1743515443544,-500.0,0.00014955,2]
[356976265,1743515443554,-500.0,0.00014955,2]
[356976266,1743515443564,-500.0,0.00014955,2]
[356976267,1743515443573,-500.0,0.00014955,2]
[356976268,1743515443585,-500.0,0.00014955,2]
[356976269,1743515443595,-500.0,0.00014955,2]
[356976270,1743515443605,-500.0,0.00014955,2]
[356976271,1743515443614,-500.0,0.00014955,2]
[356976272,1743515443624,-500.0,0.00014955,2]
[356976273,1743515443633,-500.0,0.00014955,2]
[356976274,1743515443643,-500.0,0.00014955,2]
[356976275,1743515443652,-500.0,0.00014955,2]
[356976276,1743515443662,-500.0,0.00014955,2]
[356976277,1743515443671,-500.0,0.00014955,2]
[356976278,1743515443681,-500.0,0.00014955,2]
[356976279,1743515443691,-500.0,0.00014955,2]
[356976280,1743515443700,-500.0,0.00014955,2]
[356976281,1743515443710,-500.0,0.00014955,2]
[356976282,1743515443719,-500.0,0.00014955,2]
[356976283,1743515443729,-500.0,0.00014955,2]
[356976284,1743515443739,-500.0,0.00014955,2]
[356976285,1743515443748,-500.0,0.00014955,2]
[356976286,1743515443758,-500.0,0.00014955,2]
[356976287,1743515443767,-500.0,0.00014955,2]
[356976288,1743515443776,-500.0,0.00014955,2]
[356976289,1743515443786,-500.0,0.00014955,2]
[356976290,1743515443796,-500.0,0.00014955,2]
[356976291,1743515443805,-500.0,0.00014955,2]
[356976292,1743515443815,-500.0,0.00014955,2]
[356976293,1743515443824,-500.0,0.00014955,2]
[356976294,1743515443836,-500.0,0.00014955,2]
[356976295,1743515443845,-500.0,0.00014955,2]
[356976296,1743515443855,-500.0,0.00014955,2]
[356976297,1743515443864,-500.0,0.00014955,2]
[356976298,1743515443874,-500.0,0.00014955,2]
[356976299,1743515443884,-500.0,0.00014955,2]
[356976300,1743515443894,-500.0,0.00014955,2]
[356976301,1743515443904,-500.0,0.00014955,2]
[356976302,1743515443914,-500.0,0.00014955,2]
[356976303,1743515443924,-500.0,0.00014955,2]
[356976304,1743515443934,-500.0,0.00014955,2]
[356976305,1743515443943,-500.0,0.00014955,2]
[356976306,1743515443954,-500.0,0.00014955,2]
[356976307,1743515443964,-500.0,0.00014955,2]
[356976308,1743515443974,-469.07592495,0.00014955,2]
[356976309,1743515443985,-500.0,0.00014955,2]
[356976310,1743515443995,-500.0,0.00014955,2]
[356976311,1743515444005,-500.0,0.00014955,2]
[356976312,1743515444015,-500.0,0.00014955,2]
[356976313,1743515444024,-500.0,0.00014955,2]
[356976314,1743515444034,-500.0,0.00014955,2]
[356976315,1743515444043,-501.55662689,0.00014955,2]
[356976316,1743515444052,-500.0,0.00014955,2]
[356976317,1743515444062,-300.0,0.00014955,2]
[356976318,1743515444072,-50000.0,0.00014956,2]
[356976319,1743515444082,-9149.86943537,0.00015,2]
[356976320,1743515444097,-1395.57699216,0.00015203,2]
[356976321,1743515444108,-500.0,0.00015273,2]
[356976322,1743515444118,-503.86053669,0.00015343,2]
[356976323,1743515444128,-1395.57699216,0.00015548,2]
[356976324,1743515444138,-1395.57699216,0.00015893,2]
[356976325,1743515444148,-1395.57699216,0.00016238,2]
[356976326,1743515444158,-370000.0,0.00016338,2]
[356976327,1743515444168,-420.0,0.00016368,2]
[356976328,1743515444177,-424.24920872,0.00016373,2]
[356976329,1743515444188,-503.21108018,0.00016373,2]
[356976330,1743515444198,-500.0,0.00016373,2]
[356976331,1743515444208,-500.0,0.00016373,2]
[356976332,1743515444217,-500.0,0.00016373,2]
[356976333,1743515444227,-276.71345104,0.00016373,2]
[356976334,1743515444237,-423.16967014,0.00016373,2]
[356976335,1743515444246,-500.0,0.00016373,2]
[356976336,1743515444256,-500.0,0.00016373,2]
[356976337,1743515444266,-500.0,0.00016373,2]
[356976338,1743515444276,-500.0,0.00016373,2]
[356976339,1743515444285,-466.3674602,0.00016373,2]
[356976340,1743515444295,-500.0,0.00016373,2]
[356976341,1743515444304,-500.0,0.00016373,2]
[356976342,1743515444315,-501.22982129,0.00016373,2]
[356976343,1743515444329,-500.0,0.00016373,2]
[356976344,1743515444340,-500.0,0.00016373,2]
[356976345,1743515444350,-500.0,0.00016373,2]
[356976346,1743515444359,-500.0,0.00016373,2]
[356976347,1743515444371,-500.0,0.00016373,2]
[356976348,1743515444380,-500.0,0.00016373,2]
[356976349,1743515444390,-500.0,0.00016373,2]
[356976350,1743515444400,-261.4620889,0.00016373,2]
[356976351,1743515444410,-500.0,0.00016373,2]
[356976352,1743515444420,-500.0,0.00016438,2]
[356976353,1743515444430,-500.0,0.00016438,2]
[356976354,1743515444440,-500.0,0.00016438,2]
[356976355,1743515444449,-500.0,0.00016438,2]
[356976356,1743515444459,-500.0,0.00016438,2]
[356976357,1743515444469,-500.0,0.00016438,2]
[356976358,1743515444479,-500.0,0.00016438,2]
[356976359,1743515444489,-500.0,0.00016438,2]
[356976360,1743515444498,-500.0,0.00016438,2]
[356976361,1743515444509,-500.0,0.00016438,2]
[356976362,1743515444518,-500.0,0.00016438,2]
[356976363,1743515444528,-500.0,0.00016438,2]
[356976364,1743515444538,-500.0,0.00016438,2]
[356976365,1743515444547,-178.88677062,0.00016438,2]
[356976366,1743515444557,-500.0,0.00016438,2]
[356976367,1743515444566,-500.0,0.00016438,2]
[356976368,1743515444576,-500.0,0.00016438,2]
[356976369,1743515444587,-500.0,0.00016438,2]
[356976370,1743515444597,-500.0,0.00016438,2]
[356976371,1743515444607,-500.0,0.00016438,2]
[356976372,1743515444616,-500.0,0.00016438,2]
[356976373,1743515444625,-500.0,0.00016438,2]
[356976374,1743515444635,-500.0,0.00016438,2]
[356976375,1743515444645,-500.0,0.00016438,2]
[356976376,1743515444654,-500.0,0.00016438,2]
[356976377,1743515444663,-709.73,0.00016438,2]
[356976378,1743515444673,-500.0,0.00016438,2]
[356976379,1743515444683,-500.0,0.00016438,2]
[356976380,1743515444693,-500.0,0.00016438,2]
[356976381,1743515444703,-500.0,0.00016438,2]
[356976382,1743515444713,-500.0,0.00016438,2]
[356976383,1743515444723,-500.0,0.00016438,2]
[356976384,1743515444733,-500.0,0.00016438,2]
[356976385,1743515444742,-500.0,0.00016438,2]
[356976386,1743515444751,-500.0,0.00016438,2]
[356976387,1743515444761,-500.0,0.00016438,2]
[356976388,1743515444770,-500.0,0.00016438,2]
[356976389,1743515444780,-500.0,0.00016438,2]
[356976390,1743515444790,-274.73893777,0.00016438,2]
[356976391,1743515444800,-500.0,0.00016438,2]
[356976392,1743515444810,-500.0,0.00016438,2]
[356976393,1743515444819,-817.13,0.00016438,2]
[356976394,1743515444828,-500.0,0.00016438,2]
[356976395,1743515444838,-500.0,0.00016438,2]
[356976396,1743515444848,-500.0,0.00016438,2]
[356976397,1743515444858,-500.0,0.00016438,2]
[356976398,1743515444868,-558.97869596,0.00016438,2]
[356976399,1743515444878,-481.53185672,0.00016438,2]
[356976400,1743515444887,-500.0,0.00016438,2]
[356976401,1743515444897,-500.0,0.00016438,2]
[356976402,1743515444908,-500.0,0.00016438,2]
[356976403,1743515444918,-500.0,0.00016438,2]
[356976404,1743515444929,-500.0,0.00016438,2]
[356976405,1743515444939,-500.0,0.00016438,2]
[356976406,1743515444948,-500.0,0.00016438,2]
[356976407,1743515444959,-500.0,0.00016438,2]
[356976408,1743515444969,-500.0,0.00016438,2]
[356976409,1743515444980,-500.0,0.00016438,2]
[356976410,1743515444989,-500.0,0.00016438,2]
[356976411,1743515445000,-500.0,0.00016438,2]
[356976412,1743515445009,-500.0,0.00016438,2]
[356976413,1743515445020,-367.48737882,0.00016438,2]
[356976414,1743515445031,-500.0,0.00016438,2]
[356976415,1743515445041,-500.0,0.00016438,2]
[356976416,1743515445050,-500.0,0.00016438,2]
[356976417,1743515445061,-500.0,0.00016438,2]
[356976418,1743515445070,-500.0,0.00016438,2]
[356976419,1743515445080,-507.86,0.00016438,2]
[356976420,1743515445092,-500.0,0.00016438,2]
[356976421,1743515445102,-529.8586377,0.00016438,2]
[356976422,1743515445112,-500.0,0.00016438,2]
[356976423,1743515445122,-461.28221562,0.00016438,2]
[356976424,1743515445132,-500.0,0.00016438,2]
[356976425,1743515445142,-500.0,0.00016438,2]
[356976426,1743515445152,-500.0,0.00016438,2]
[356976427,1743515445162,-500.0,0.00016438,2]
[356976428,1743515445172,-500.0,0.00016438,2]
[356976429,1743515445182,-500.0,0.00016438,2]
[356976430,1743515445193,-500.0,0.00016438,2]
[356976431,1743515445202,-500.0,0.00016438,2]
[356976432,1743515445212,-882.83,0.00016438,2]
[356976433,1743515445222,-500.0,0.00016438,2]
[356976434,1743515445232,-500.0,0.00016438,2]
[356976435,1743515445242,-500.0,0.00016438,2]
[356976436,1743515445251,-500.0,0.00016438,2]
[356976437,1743515445261,-643.9763645,0.00016438,2]
[356976438,1743515445271,-500.0,0.00016438,2]
[356976439,1743515445280,-500.0,0.00016438,2]
[356976440,1743515445291,-500.0,0.00016438,2]
[356976441,1743515445300,-500.0,0.00016438,2]
[356976442,1743515445311,-500.0,0.00016438,2]
[356976443,1743515445323,-500.0,0.00016438,2]
[356976444,1743515445337,-523.91197719,0.00016438,2]
[356976445,1743515445347,-500.0,0.00016438,2]
[356976446,1743515445357,-500.0,0.00016438,2]
[356976447,1743515445366,-500.0,0.00016438,2]
[356976448,1743515445376,-500.0,0.00016438,2]
[356976449,1743515445386,-5761.44,0.00016438,2]
[356976450,1743515445397,-5761.44,0.00016438,2]
[356976451,1743515445408,-5761.44,0.00016438,2]
[356976452,1743515445419,-5761.44,0.00016438,2]
[356976453,1743515445429,-5761.44,0.00016438,2]
[356976454,1743515445439,-5761.44,0.00016438,2]
[356976455,1743515445450,-5761.44,0.00016438,2]
[356976456,1743515445461,-5761.44,0.00016438,2]
[356976457,1743515445473,-5761.44,0.00016438,2]
[356976458,1743515445483,-5761.44,0.00016438,2]
[356976459,1743515445493,-5761.44,0.00016438,2]
[356976460,1743515445502,-5761.44,0.00016438,2]
[356976461,1743515445512,-5761.44,0.00016438,2]
[356976462,1743515445521,-5761.44,0.00016438,2]
[356976463,1743515445530,-5761.44,0.00016438,2]
[356976464,1743515445539,-5761.44,0.00016438,2]
[356976465,1743515445549,-5761.44,0.00016438,2]
[356976467,1743515445559,-5761.44,0.00016438,2]
[356976469,1743515445716,-5761.44,0.00016438,2]
[356976470,1743515445728,-5761.44,0.00016438,2]
[356976471,1743515445738,-5761.44,0.00016438,2]
[356976472,1743515445748,-5761.44,0.00016438,2]
[356976473,1743515445758,-5761.44,0.00016438,2]
[356976474,1743515445768,-500.0,0.00016438,2]
[356976475,1743515445780,-5761.54372786,0.00016438,2]
[356976476,1743515445789,-500.0,0.00016438,2]
[356976477,1743515445799,-500.0,0.00016438,2]
[356976478,1743515445809,-500.0,0.00016438,2]
[356976480,1743515445819,-801.27,0.00016438,2]
[356976481,1743515445827,-500.0,0.00016438,2]
[356976482,1743515445838,-500.0,0.00016438,2]